{"text_format":"1","workbook":"xlsx","n_sheets":4,"sheets":["一覧","個人懇談実施計画","個人懇談個票1","個人懇談個票2"],"not_rendered":{"charts":0,"images":0,"macros":1,"external_links":0,"defined_names":21,"comments":0,"pivot_tables":0},"unopened":[],"bounds":{"document_bytes":16777216,"sheet_cells":100000,"rows_first":2000,"rows_last":500,"rows_between":2000,"halvings":0,"cell_chars":16384,"cell_head_chars":4096},"cells_cut":0,"cells_raw":0,"read":"whole","date_system":"1900"}

{"sheet":"一覧","index":0,"n_rows":49,"n_cols":22,"rows_kept":49,"cut":false,"hidden":false,"merged":[[0,2,0,4],[11,13,11,15]]}
[null,null,"エクセル市立マクロ小学校",null,null,null,"便利　太郎",null,"日本　花子"]
[7,1,null,null,null,null,null,null,null,null,null,null,null,null,"人数合計",{"$f":"COUNTA(一覧!B5:B49)","v":40},null,null,null,null,null,"C6-F46"]
[null,null,null,null,null,null,null,null,null,"時間(分)",null,null,null,"月","日","曜日",null,null,null,null,null,"データ数"]
["No.","児童名","月","日","曜日","開始時刻","終了時刻","備考",null,15,null,null,null,{"$f":"LEFT(S4,FIND(\"月\",S4)-1)","v":"11"},{"$f":"MID(S4,FIND(\"月\",S4)+1,FIND(\"日\",S4)-FIND(\"月\",S4)-1)","v":"26"},{"$f":"MID(S4,FIND(\"(\",S4)+1,1)","v":"木"},null,null,"11月26日(木)",null,null,{"$f":"COUNTA(テーブル2[[月]:[開始時刻]])","v":0}]
[1,"石田　拓海",null,null,null,null,{"$f":"テーブル2[[#This Row],[開始時刻]]+懇談時間/1440","v":"00:15:00"}]
[2,"伊藤　愛美",null,null,null,null,{"$f":"テーブル2[[#This Row],[開始時刻]]+懇談時間/1440","v":"00:15:00"}]
[3,"上杉　空",null,null,null,null,{"$f":"テーブル2[[#This Row],[開始時刻]]+懇談時間/1440","v":"00:15:00"}]
[4,"上戸　麻衣子",null,null,null,null,{"$f":"テーブル2[[#This Row],[開始時刻]]+懇談時間/1440","v":"00:15:00"}]
[5,"大石　心",null,null,null,null,{"$f":"テーブル2[[#This Row],[開始時刻]]+懇談時間/1440","v":"00:15:00"}]
[6,"大久保　陸",null,null,null,null,{"$f":"テーブル2[[#This Row],[開始時刻]]+懇談時間/1440","v":"00:15:00"}]
[7,"大阪　太郎",null,null,null,null,{"$f":"テーブル2[[#This Row],[開始時刻]]+懇談時間/1440","v":"00:15:00"}]
[8,"織田　翼",null,null,null,null,{"$f":"テーブル2[[#This Row],[開始時刻]]+懇談時間/1440","v":"00:15:00"},null,null,null,null,null,"個票１か\n個票２か","個票1校長名で印刷"]
[9,"菅野　結菜",null,null,null,null,{"$f":"テーブル2[[#This Row],[開始時刻]]+懇談時間/1440","v":"00:15:00"}]
[10,"木戸　くるみ",null,null,null,null,{"$f":"テーブル2[[#This Row],[開始時刻]]+懇談時間/1440","v":"00:15:00"}]
[11,"木下　悠吾",null,null,null,null,{"$f":"テーブル2[[#This Row],[開始時刻]]+懇談時間/1440","v":"00:15:00"}]
[12,"国仲　海斗",null,null,null,null,{"$f":"テーブル2[[#This Row],[開始時刻]]+懇談時間/1440","v":"00:15:00"}]
[13,"熊田　涼太",null,null,null,null,{"$f":"テーブル2[[#This Row],[開始時刻]]+懇談時間/1440","v":"00:15:00"}]
[14,"栗山　綾乃",null,null,null,null,{"$f":"テーブル2[[#This Row],[開始時刻]]+懇談時間/1440","v":"00:15:00"}]
[15,"小池　優衣",null,null,null,null,{"$f":"テーブル2[[#This Row],[開始時刻]]+懇談時間/1440","v":"00:15:00"}]
[16,"小松　健太",null,null,null,null,{"$f":"テーブル2[[#This Row],[開始時刻]]+懇談時間/1440","v":"00:15:00"}]
[17,"近藤　優輝",null,null,null,null,{"$f":"テーブル2[[#This Row],[開始時刻]]+懇談時間/1440","v":"00:15:00"}]
[18,"西郷　啓太",null,null,null,null,{"$f":"テーブル2[[#This Row],[開始時刻]]+懇談時間/1440","v":"00:15:00"}]
[19,"坂本　愛莉",null,null,null,null,{"$f":"テーブル2[[#This Row],[開始時刻]]+懇談時間/1440","v":"00:15:00"}]
[20,"佐藤　琴音",null,null,null,null,{"$f":"テーブル2[[#This Row],[開始時刻]]+懇談時間/1440","v":"00:15:00"}]
[21,"篠原　翔",null,null,null,null,{"$f":"テーブル2[[#This Row],[開始時刻]]+懇談時間/1440","v":"00:15:00"}]
[22,"柴咲　真理",null,null,null,null,{"$f":"テーブル2[[#This Row],[開始時刻]]+懇談時間/1440","v":"00:15:00"}]
[23,"島田　美優",null,null,null,null,{"$f":"テーブル2[[#This Row],[開始時刻]]+懇談時間/1440","v":"00:15:00"}]
[24,"瀬戸　真央",null,null,null,null,{"$f":"テーブル2[[#This Row],[開始時刻]]+懇談時間/1440","v":"00:15:00"}]
[25,"高杉　芽衣",null,null,null,null,{"$f":"テーブル2[[#This Row],[開始時刻]]+懇談時間/1440","v":"00:15:00"}]
[26,"武田　太一",null,null,null,null,{"$f":"テーブル2[[#This Row],[開始時刻]]+懇談時間/1440","v":"00:15:00"}]
[27,"遠山　蒼太",null,null,null,null,{"$f":"テーブル2[[#This Row],[開始時刻]]+懇談時間/1440","v":"00:15:00"}]
[28,"徳川　大輝",null,null,null,null,{"$f":"テーブル2[[#This Row],[開始時刻]]+懇談時間/1440","v":"00:15:00"}]
[29,"長澤　美緒",null,null,null,null,{"$f":"テーブル2[[#This Row],[開始時刻]]+懇談時間/1440","v":"00:15:00"}]
[30,"夏木　彩音",null,null,null,null,{"$f":"テーブル2[[#This Row],[開始時刻]]+懇談時間/1440","v":"00:15:00"}]
[31,"野田　健太",null,null,null,null,{"$f":"テーブル2[[#This Row],[開始時刻]]+懇談時間/1440","v":"00:15:00"}]
[32,"平賀　真衣",null,null,null,null,{"$f":"テーブル2[[#This Row],[開始時刻]]+懇談時間/1440","v":"00:15:00"}]
[33,"広末　未来",null,null,null,null,{"$f":"テーブル2[[#This Row],[開始時刻]]+懇談時間/1440","v":"00:15:00"}]
[34,"深田　雄太",null,null,null,null,{"$f":"テーブル2[[#This Row],[開始時刻]]+懇談時間/1440","v":"00:15:00"}]
[35,"福沢　陽太",null,null,null,null,{"$f":"テーブル2[[#This Row],[開始時刻]]+懇談時間/1440","v":"00:15:00"}]
[36,"堀北　美由紀",null,null,null,null,{"$f":"テーブル2[[#This Row],[開始時刻]]+懇談時間/1440","v":"00:15:00"}]
[37,"松尾　歩",null,null,null,null,{"$f":"テーブル2[[#This Row],[開始時刻]]+懇談時間/1440","v":"00:15:00"}]
[38,"眞鍋　あかり",null,null,null,null,{"$f":"テーブル2[[#This Row],[開始時刻]]+懇談時間/1440","v":"00:15:00"}]
[39,"宮﨑　遥",null,null,null,null,{"$f":"テーブル2[[#This Row],[開始時刻]]+懇談時間/1440","v":"00:15:00"}]
[40,"宮本　瑛大",null,null,null,null,{"$f":"テーブル2[[#This Row],[開始時刻]]+懇談時間/1440","v":"00:15:00"}]
[41,null,null,null,null,null,{"$f":"テーブル2[[#This Row],[開始時刻]]+懇談時間/1440","v":"00:15:00"}]
[42,null,null,null,null,null,{"$f":"テーブル2[[#This Row],[開始時刻]]+懇談時間/1440","v":"00:15:00"}]
[43,null,null,null,null,null,{"$f":"テーブル2[[#This Row],[開始時刻]]+懇談時間/1440","v":"00:15:00"}]
[44,null,null,null,null,null,{"$f":"テーブル2[[#This Row],[開始時刻]]+懇談時間/1440","v":"00:15:00"}]
[45,null,null,null,null,null,{"$f":"テーブル2[[#This Row],[開始時刻]]+懇談時間/1440","v":"00:15:00"}]

{"sheet":"個人懇談実施計画","index":1,"n_rows":29,"n_cols":19,"rows_kept":29,"cut":false,"hidden":false,"merged":[[24,4,24,6],[7,1,7,3],[5,11,5,12],[0,10,1,13],[12,11,12,13],[21,1,22,8]]}
[null,"個人懇談実施予定表",null,null,null,null,null,null,null,null,"左の表内は　\nダブルクリックで交換可能"]
[]
[]
[null,{"$f":"学年 & \" 年 \" & 組 &\" 組\"","v":"7 年 1 組"},null,null,null,null,null,null,null,null,null,"人数合計",{"$f":"COUNTA(日程別児童名一覧)","v":40}]
[null,null,null,null,"開始時刻","午後","01:45:00"]
[null,null,null,null,"面談時間",{"$f":"懇談時間","v":15},"分",null,null,null,null,"印刷児童"]
[null,null,null,null,null,"↑自動で入る",null,"人数",{"$f":"COUNTA(日程別児童名一覧)","v":40},null,null,"瀬戸　真央"]
[null,null,null,null,"11月24日(火)","11月26日(木)","11月27日(金)","11月30日(月)","11月30日(月)",null,null,null,null,null,null,"No","児童名","No","児童名"]
[null,{"$f":"G5","v":"01:45:00"},"～",{"$f":"B9+$F$6/1440","v":"02:00:00"},"遠山　蒼太","木下　悠吾","佐藤　琴音","長澤　美緒","堀北　美由紀",null,null,null,null,null,null,1,"石田　拓海",22,"柴咲　真理"]
[null,{"$f":"D9","v":"02:00:00"},"～",{"$f":"D9+$F$6/1440","v":"02:15:00"},"国仲　海斗","伊藤　愛美","野田　健太","夏木　彩音","松尾　歩",null,null,null,null,null,null,2,"伊藤　愛美",23,"島田　美優"]
[null,{"$f":"D10","v":"02:15:00"},"～","02:30:00","上杉　空","熊田　涼太","柴咲　真理","石田　拓海","眞鍋　あかり",null,null,null,null,null,null,3,"上杉　空",24,"瀬戸　真央"]
[null,"02:30:00","～","02:45:00","上戸　麻衣子","栗山　綾乃","島田　美優","平賀　真衣","宮﨑　遥",null,null,null,null,null,null,4,"上戸　麻衣子",25,"高杉　芽衣"]
[null,"02:45:00","～","03:00:00","大石　心","小池　優衣","瀬戸　真央","広末　未来",null,null,"個票１か\n個票２か","個票1校長名で印刷",null,null,null,5,"大石　心",26,"武田　太一"]
[null,"03:00:00","～","03:15:00","大久保　陸","小松　健太","高杉　芽衣","深田　雄太",null,null,null,null,null,null,null,6,"大久保　陸",27,"遠山　蒼太"]
[null,"03:15:00","～","03:30:00","大阪　太郎","近藤　優輝","武田　太一","福沢　陽太",null,null,null,null,"重複",null,null,7,"大阪　太郎",28,"徳川　大輝"]
[null,"03:30:00","～","03:45:00","織田　翼","西郷　啓太","篠原　翔",null,null,null,null,null,"無し",null,null,8,"織田　翼",29,"長澤　美緒"]
[null,"03:45:00","～","04:00:00","菅野　結菜","坂本　愛莉","徳川　大輝",null,null,null,null,null,null,null,null,9,"菅野　結菜",30,"夏木　彩音"]
[null,{"$f":"D17","v":"04:00:00"},"～","04:15:00","木戸　くるみ",null,null,null,null,null,null,null,null,null,null,10,"木戸　くるみ",31,"野田　健太"]
[null,"04:15:00","～","04:30:00",null,null,null,null,null,null,null,null,null,null,null,11,"木下　悠吾",32,"平賀　真衣"]
[null,{"$f":"D19","v":"04:30:00"},"～","04:45:00",null,null,null,null,null,null,null,null,null,null,null,12,"国仲　海斗",33,"広末　未来"]
[null,{"$f":"D20","v":"04:45:00"},"～","05:00:00",null,"宮本　瑛大",null,null,null,null,null,null,null,null,null,13,"熊田　涼太",34,"深田　雄太"]
[null,null,null,null,null,null,null,null,null,null,null,null,null,null,null,14,"栗山　綾乃",35,"福沢　陽太"]
[null,null,null,null,null,null,null,null,null,null,null,null,null,null,null,15,"小池　優衣",36,"堀北　美由紀"]
[null,null,null,null,null,null,null,null,null,null,null,null,null,null,null,16,"小松　健太",37,"松尾　歩"]
[null,null,null,null,{"$f":"\"教室前の椅子にかけてお待ちください。\nお一人あたり \" & 懇談時間 & \" 分程度です。\"","v":"教室前の椅子にかけてお待ちください。\nお一人あたり 15 分程度です。"},null,null,"←懇談時間がかわるように",null,null,null,null,null,null,null,17,"近藤　優輝",38,"眞鍋　あかり"]
[null,null,null,null,null,null,null,null,null,null,null,null,null,null,null,18,"西郷　啓太",39,"宮﨑　遥"]
[null,null,null,null,null,null,null,null,null,null,null,null,null,null,null,19,"坂本　愛莉",40,"宮本　瑛大"]
[null,null,null,null,null,null,null,null,null,null,null,null,null,null,null,20,"佐藤　琴音",41]
[null,null,null,null,null,null,null,null,null,null,null,null,null,null,null,21,"篠原　翔",42]

{"sheet":"個人懇談個票1","index":2,"n_rows":22,"n_cols":19,"rows_kept":22,"cut":false,"hidden":false,"merged":[[0,7,0,12],[2,1,2,4],[2,5,2,7],[3,7,3,12],[4,8,4,9],[4,11,4,12],[6,1,6,2],[6,3,6,10],[8,1,8,12],[10,1,10,5],[14,3,14,5]]}
[null,null,null,null,null,null,null,"令和2年(2020年) 11月1日"]
[null,{"$f":"学年&\" 年\"","v":"7 年"},{"$f":"組","v":1},"組"]
[null,{"$f":"VLOOKUP(出席番号,児童と時間一覧表,2,0)","v":"瀬戸　真央"},null,null,null,"保護者 様",null,null,null,null,null,null,null,null,null,null,null,"出席番号",24]
[null,null,null,null,null,null,null,{"$f":"学校名","v":"エクセル市立マクロ小学校"}]
[null,null,null,null,null,null,null,null,"校長 ",null,null,{"$f":"校長名","v":"日本　花子"}]
[]
[null,null,null,"個人懇談会予定日時のお知らせ"]
[]
[null,"　晩秋の候、保護者の皆様にはご健勝にてお過ごしのこととお喜び申し上げます。\n　平素は何かと本校教育にご理解とご協力を賜りありがとうございます。\nさて先日お聞かせいただきましたご都合を元に、個人懇談会の予定を決めさせていただきました。\n　何かとご多忙のこととは存じますが、万障お繰り合わせのうえご来校ください。"]
[]
[null,"◇個人懇談会予定日時"]
[]
[null,null,{"$f":"VLOOKUP(出席番号,児童と時間一覧表,3,0)","v":0},"月",{"$f":"VLOOKUP(出席番号,児童と時間一覧表,4,0)","v":0},"日",{"$f":"VLOOKUP(出席番号,児童と時間一覧表,5,0)","v":0},"曜日"]
[]
[null,null,null,{"$f":"VLOOKUP(出席番号,児童と時間一覧表,6,0)","v":"00:00:00"},null,null,"～",{"$f":"VLOOKUP(出席番号,児童と時間一覧表,7,0)","v":"00:15:00"}]
[]
[null,null,"場所：各教室"]
[]
[]
[null,null,"※お願い"]
[null,null,"·ご来校の折には、ネームプレート·上履きをご持参ください。"]
[null,null,"·車での来校はご遠慮ください。"]

{"sheet":"個人懇談個票2","index":3,"n_rows":21,"n_cols":12,"rows_kept":21,"cut":false,"hidden":false,"merged":[[1,7,1,12],[3,1,3,4],[3,5,3,7],[4,7,4,12],[5,11,5,12],[7,1,7,2],[7,3,7,10],[9,1,9,12],[11,1,11,5],[15,3,15,5],[13,2,13,7],[15,7,15,9]]}
[]
[null,null,null,null,null,null,null,"令和2年(2020年) 11月1日"]
[null,{"$f":"学年&\" 年\"","v":"7 年"},{"$f":"組","v":1},"組"]
[null,{"$f":"個人懇談実施計画!L7","v":"瀬戸　真央"},null,null,null,"保護者 様"]
[null,null,null,null,null,null,null,{"$f":"学校名","v":"エクセル市立マクロ小学校"}]
[null,null,null,null,null,null,null,null,null,null,"担任",{"$f":"IF(担任名=\"\",\"\",担任名)","v":"便利　太郎"}]
[]
[null,null,null,"個人懇談(日時決定）のお知らせ"]
[]
[null,"個人懇談の日時が決まりましたので、お知らせします。\n限られた時間ですので、ご協力よろしくお願いいたします。\n懇談内容などで、事前にお伝えされたいことがございましたら、\n連絡帳などでお知らせください。\n　"]
[]
[null,"個人懇談会日時"]
[]
[null,null,"11月27日(金)"]
[]
[null,null,null,"02:45:00",null,null,"～","03:00:00"]
[]
[null,null,"場所：各教室"]
[]
[]
[null,null,"※　時間が多少前後することもありますが、ご了承ください。"]